fUSD/lending_fUSD_20250325
["ID","MTS","AMOUNT","RATE_DAILY","PERIOD"]
[356638711,1742878238000,-289.18587734,0.00012,2]
[356638720,1742878239930,-2482.0,0.00012,2]
[356638721,1742878240144,-38352.95170704,0.00012,2]
[356638731,1742878242803,-3001.67,0.00012,2]
[356638732,1742878242912,-5064.7988558,0.00012,2]
[356638733,1742878242968,-331.40167,0.00012,2]
[356638734,1742878242980,-3797.68104727,0.00012,2]
[356638735,1742878242991,-1795.66259684,0.00012,2]
[356638747,1742878245771,-16074.58931408,0.00012,2]
[356638748,1742878245814,-1729.24609705,0.00012,2]
[356638749,1742878245825,-2647.73328687,0.00012,2]
[356638750,1742878245837,-710.81898075,0.00012,2]
[356638751,1742878245884,-924.87105184,0.00012,2]
[356638752,1742878245897,-490694.65005101,0.00012,2]
[356638753,1742878245908,-9760.1851931,0.00012056,2]
[356638754,1742878245917,-5083.59178932,0.00012256,2]
[356638755,1742878245927,-150.0,0.00012668,2]
[356638756,1742878245937,-150.0,0.00012825,2]
[356638757,1742878245946,-150.0,0.00012892,2]
[356638758,1742878245955,-255.0,0.00012982,2]
[356638759,1742878245964,-300.0,0.00013,2]
[356638760,1742878245973,-150.81,0.00013699,2]
[356638761,1742878245982,-500.0,0.00013699,2]
[356638762,1742878245991,-376.86791794,0.00013699,2]
[356638763,1742878246000,-22863.0,0.00014544,2]
[356638764,1742878246012,-350.0,0.00015,2]
[356638765,1742878246021,-9760.18519305,0.00016205,2]
[356638766,1742878246031,-5083.59178928,0.00016383,2]
[356638767,1742878246041,-882.88,0.00016482,2]
[356638768,1742878246164,-1195.0,0.00016505,2]
[356638769,1742878246174,-400.0,0.00017,2]
[356638770,1742878246183,-200.0,0.00018268,2]
[356638771,1742878246192,-1226.83,0.00018311,2]
[356638772,1742878246201,-300.0,0.00018345,2]
[356638773,1742878246211,-1046.25,0.00018463,2]
[356638774,1742878246221,-23900.0,0.00018493,2]
[356638775,1742878246230,-193.64645464,0.00018567,2]
[356638776,1742878246239,-254.43,0.00018574,2]
[356638777,1742878246248,-200.0,0.00018581,2]
[356638778,1742878246257,-882.88,0.00018746,2]
[356638779,1742878246266,-1711.66,0.00018999,2]
[356638780,1742878246276,-450.0,0.00019,2]
[356638781,1742878246285,-1000.0,0.00019099,2]
[356638782,1742878246294,-2000.0,0.00019123,2]
[356638783,1742878246303,-250.0,0.00019187,2]
[356638784,1742878246312,-1021.0,0.000192,2]
[356638785,1742878246321,-150.99,0.00019339,2]
[356638786,1742878246330,-166.66,0.00019444,2]
[356638787,1742878246339,-151.76,0.0002,2]
[356638788,1742878246348,-151.76,0.0002,2]
[356638789,1742878246357,-166.66,0.00020086,2]
[356638790,1742878246366,-9760.18519305,0.00020354,2]
[356638791,1742878246376,-5083.59178928,0.0002051,2]
[356638792,1742878246385,-166.66,0.00020728,2]
[356638793,1742878246394,-500.0,0.00021,2]
[356638794,1742878246402,-882.88,0.0002101,2]
[356638795,1742878246411,-166.66,0.0002137,2]
[356638796,1742878246420,-1000.0,0.00021486,2]
[356638797,1742878246430,-1000.0,0.00021554,2]
[356638798,1742878246442,-166.66,0.00022012,2]
[356638799,1742878246451,-11022.1,0.00022562,2]
[356638800,1742878246461,-20374.28,0.00022562,2]
[356638801,1742878246470,-166.66,0.00022654,2]
[356638802,1742878246479,-550.0,0.00023,2]
[356638803,1742878246490,-882.88,0.00023274,2]
[356638804,1742878246499,-169.19,0.00023836,2]
[356638805,1742878246508,-1000.0,0.00023873,2]
[356638806,1742878246518,-1342.7259532,0.00024056,2]
[356638807,1742878246528,-9760.18519305,0.00024502,2]
[356638808,1742878246537,-5083.59178928,0.00024637,2]
[356638809,1742878246546,-205.05,0.00024712,30]
[356638810,1742878246555,-255020.885079,0.000248,2]
[356638811,1742878246564,-500.81558083,0.00024873,2]
[356638812,1742878246573,-151.2543746,0.00024873,2]
[356638813,1742878246582,-415.99122694,0.00024873,2]
[356638814,1742878246591,-151.76,0.0002489,2]
[356638815,1742878246600,-307305.70627461,0.000249,2]
[356638816,1742878246612,-599.38775637,0.000249,2]
[356638817,1742878246623,-38548.6271838,0.000249,2]
[356638818,1742878246634,-562.86914722,0.000249,2]
[356638820,1742878372424,500.0,0.00031618,120]
[356638821,1742878447528,3200.0,7.945e-05,2]
[356638822,1742879320856,142223.34,0.00031611,30]
[356638823,1742879431941,-250.0,0.00011,2]
[356638824,1742879431952,-150.0,0.00011374,2]
[356638825,1742879431962,-141.02982009,0.000121,2]
[356638826,1742879431974,-8.97017991,0.000121,2]
[356638827,1742879431983,-150.0,0.00012148,2]
[356638828,1742879431992,-300.0,0.00013,2]
[356638829,1742879432002,-250.0,0.00014535,2]
[356638830,1742879432012,-350.0,0.00015,2]
[356638831,1742879432022,-400.0,0.00017,2]
[356638832,1742879432031,-450.0,0.00019,2]
[356638833,1742879432041,-150.99,0.00019339,2]
[356638834,1742879432050,-1007.0444649,0.00024152,2]
[356638835,1742879432060,-337.21586934,0.00024173,2]
[356638836,1742879432069,-337.21586934,0.00024386,2]
[356638837,1742879432078,-209.5696,0.000249,2]
[356638838,1742879432087,-841.87483162,0.00025504,2]
[356638839,1742879432097,-4818.4534522,0.00025521,2]
[356638840,1742879432106,-369.37,0.00026849,2]
[356638841,1742879432115,-151.24,0.00026849,2]
[356638842,1742879432124,-202.80463134,0.000269,4]
[356638843,1742879432133,-181.63,0.00030056,2]
[356638844,1742879432142,-202.80463129,0.00030111,5]
[356638845,1742879432151,-181.63,0.00030119,2]
[356638846,1742879432160,-181.63,0.00030183,2]
[356638847,1742879432169,-372.0,0.000302,2]
[356638848,1742879432178,-181.63,0.00030246,2]
[356638849,1742879432188,-1475.265,0.00030246,25]
[356638850,1742879432198,-181.63,0.00030309,2]
[356638851,1742879432208,-181.63,0.00030373,2]
[356638852,1742879432218,-181.63,0.00030436,2]
[356638853,1742879432227,-181.63,0.00030499,2]
[356638854,1742879432236,-181.63,0.00030562,2]
[356638855,1742879432246,-181.63,0.00030626,2]
[356638856,1742879432255,-181.63,0.00030689,2]
[356638857,1742879432265,-181.63,0.00030752,2]
[356638858,1742879432276,-181.63,0.00030816,2]
[356638859,1742879432286,-181.63,0.00030879,2]
[356638860,1742879432296,-181.63,0.00030942,2]
[356638861,1742879432305,-3741.83207303,0.00031,120]
[356638862,1742879432315,-300.0,0.00031,7]
[356638863,1742879432324,-181.63,0.00031005,2]
[356638864,1742879432335,-181.63,0.00031069,2]
[356638865,1742879432344,-38.32798316,0.00031132,2]
[356638866,1742879432355,-143.30201684,0.00031132,2]
[356638867,1742879432364,-181.63,0.00031195,2]
[356638868,1742879432373,-181.63,0.00031259,2]
[356638869,1742879432382,-369.92798316,0.00031616,120]
[356638870,1742879432394,-3148.97995,0.00031616,120]
[356638871,1742879432409,-674.003,0.00031616,120]
[356638872,1742879432420,-653.10674342,0.00031616,120]
[356638873,1742879432433,-484.60661417,0.00031616,120]
[356638874,1742879432445,-9749.37165948,0.00031616,120]
[356638876,1742879432454,-1000.0,0.00031616,2]
[356638878,1742879432463,-1404.0,0.00031618,30]
[356638880,1742879432472,-200.0,0.00031618,2]
[356638882,1742879432481,-706.3,0.00031714,2]
[356638884,1742879432490,-277.308,0.00031749,2]
[356638886,1742879432499,-369.37,0.00032646,2]
[356638888,1742879432508,-200.0,0.0003291,2]
[356638890,1742879432517,-169.19,0.00032916,2]
[356638892,1742879432526,-235.0,0.00033039,2]
[356638894,1742879432535,-165.778,0.00033039,2]
[356638896,1742879432544,-292.079,0.00033039,2]
[356638898,1742879432553,-250.0,0.00033039,2]
[356638900,1742879432564,-173.824,0.00033039,2]
[356638902,1742879432573,-298.424,0.00033039,2]
[356638904,1742879432581,-229.723,0.00033039,2]
[356638906,1742879432591,-152.799,0.00033039,2]
[356638908,1742879432599,-1293.67,0.00033039,2]
[356638910,1742879432608,-2055.898,0.00033039,2]
[356638912,1742879432616,-648.177,0.00033039,2]
[356638914,1742879432625,-1426.536,0.00033039,2]
[356638916,1742879432634,-688.33,0.00033039,2]
[356638918,1742879432643,-794.0,0.00033039,2]
[356638920,1742879432652,-1284.501,0.00033039,2]
[356638921,1742879432661,-547.801,0.00033039,2]
[356638922,1742879432670,-817.92034052,0.00033039,2]
[356638923,1742879432681,-3307.00865948,0.00033039,2]
[356638924,1742879432691,-1459.355,0.00033039,2]
[356638925,1742879432699,-942.7,0.00033039,2]
[356638926,1742879432708,-154.958,0.00033039,2]
[356638927,1742879432717,-235.97834042,0.00033039,2]
[356638928,1742879432728,-3707.02165958,0.00033039,2]
[356638929,1742879432739,-1015.0,0.00033039,2]
[356638930,1742879432749,-809.94,0.00033152,2]
[356638931,1742879432759,-348.03834042,0.00033237,2]
[356638932,1742879432770,-1146.74615958,0.00033237,2]
[356638933,1742879432779,-202.80463129,0.00033321,6]
[356638934,1742879432788,-2200.44921413,0.00033337,2]
[356638935,1742879432801,-1300.0,0.00033337,2]
[356638936,1742879432812,-306.0,0.00033337,2]
[356638937,1742879432825,-20093.55078587,0.00033337,2]
[356638938,1742879432838,-1000.0,0.00033578,2]
[356638939,1742879432848,-150.0,0.00033795,2]
[356638940,1742879432858,-706.3,0.00033977,2]
[356638941,1742879432868,-250.0,0.0003406,2]
[356638942,1742879432879,-497.0,0.00034611,30]
[356638943,1742879432888,-738.05322903,0.00034611,30]
[356638944,1742879432899,-152.89,0.00035616,2]
[356638945,1742879432908,-150.0,0.00036039,2]
[356638946,1742879432921,-1281.0,0.00036039,2]
[356638947,1742879432930,-2037.0,0.00036039,2]
[356638948,1742879432939,-642.0,0.00036039,2]
[356638949,1742879432948,-1421.0,0.00036039,2]
[356638950,1742879432958,-572.0,0.00036039,2]
[356638951,1742879432967,-788.0,0.00036039,2]
[356638952,1742879432976,-1273.0,0.00036039,2]
[356638953,1742879432986,-542.0,0.00036039,2]
[356638954,1742879432995,-4086.0,0.00036039,2]
[356638955,1742879433005,-1431.0,0.00036039,2]
[356638956,1742879433014,-907.0,0.00036039,2]
[356638957,1742879433024,-151.0,0.00036039,2]
[356638958,1742879433033,-3943.0,0.00036039,2]
[356638959,1742879433043,-1015.0,0.00036039,2]
[356638960,1742879433054,-706.3,0.00036241,2]
[356638961,1742879433064,-273.40667231,0.000365,120]
[356638962,1742879433194,-202.80463129,0.00036532,7]
[356638963,1742879433203,-152.89,0.00036664,2]
[356638964,1742879433213,-646.0,0.000371,7]
[356638965,1742879433223,-284.58472506,0.000372,103]
[356638966,1742879433232,-152.89,0.00037712,2]
[356638967,1742879433242,-1000.0,0.00037775,2]
[356638968,1742879433251,-369.37,0.00038443,2]
[356638969,1742879433260,-706.3,0.00038505,2]
[356638970,1742879433270,-152.89,0.00038759,2]
[356638971,1742879433279,-923.20216742,0.00039,2]
[356638972,1742879433289,-788.0,0.00039039,2]
[356638973,1742879433298,-1065.86348029,0.00039039,2]
[356638974,1742879433310,-207.13651971,0.00039039,2]
[356638975,1742879433320,-542.0,0.00039039,2]
[356638976,1742879433329,-409.45690789,0.00039039,2]
[356638980,1742879437962,-1605.84217161,0.00039039,2]
[356638981,1742879437974,-1104.90149786,0.00039039,2]
[356638982,1742879437985,-612.60000005,0.00039039,2]
[356638983,1742879437996,-353.19942259,0.00039039,2]
[356638984,1742879438006,-1297.23462197,0.00039039,2]
[356638985,1742879438017,-133.76537803,0.00039039,2]
[356638986,1742879438026,-907.0,0.00039039,2]
[356638987,1742879438036,-894.282,0.00039039,2]
[356638988,1742879438045,-549.036,0.00039039,2]
[356638989,1742879438055,-202.80463129,0.00039742,8]
[356638990,1742879438064,-152.89,0.00039807,2]
[356638991,1742879438074,-4684.39986388,0.0004,30]
[356638992,1742879438085,-2448.1870025,0.0004,30]
[356638993,1742879438095,-152.5209658,0.0004,14]
[356638994,1742879438105,-151.24,0.00040616,2]
[356638995,1742879438115,-706.3,0.00040769,2]
[356638996,1742879438124,-152.89,0.00040854,2]
[356638997,1742879438133,-207.0392805,0.00041,30]
[356638999,1742879438142,-261.66535148,0.00041,120]
[356639001,1742879438152,-153.0,0.00041,14]
[356639003,1742879438160,-156.0,0.00041096,30]
[356639004,1742879438170,-804.79,0.00041616,30]
[356639005,1742879438179,-152.89,0.00041902,2]
[356639006,1742879438188,-256.18043972,0.00041972,2]
[356639008,1742879438200,-743.81956028,0.00041972,2]
[356639010,1742879438210,-558.45506909,0.00041999,120]
[356639012,1742879438221,-290.25378541,0.00042,120]
[356639014,1742879438230,-264.49,0.00042,120]
[356639015,1742879438240,-689.54,0.00042,120]
[356639017,1742879438249,-235.34,0.00042,120]
[356639018,1742879438259,-646.85,0.00042,120]
[356639020,1742879438268,-940.12653355,0.00042311,15]
[356639022,1742879438280,-900.48983006,0.00042311,15]
[356639025,1742879438292,-2388.6000052,0.00042311,15]
[356639027,1742879438303,-1029.74555247,0.00042311,15]
[356639029,1742879438314,-597.14919455,0.00042311,15]
[356639031,1742879438323,-829.36323944,0.000424,7]
[356639033,1742879438335,-778.63676056,0.000424,7]
[356639035,1742879438343,-511.36323944,0.000424,2]
[356639037,1742879438355,-1011.85,0.000424,2]
[356639040,1742879438366,-674.70292876,0.000424,2]
[356639043,1742879438390,-10101.77757108,0.000424,2]
[356639045,1742879438399,-921.9,0.00042411,30]
[356639046,1742879438408,-781.6,0.00042411,30]
[356639047,1742879438417,-781.6,0.00042411,30]
[356639048,1742879438426,-359.67,0.000425,120]
[356639049,1742879438435,-441.77,0.00042795,30]
[356639050,1742879438443,-152.89,0.00042949,2]
[356639051,1742879438452,-202.80463129,0.00042953,9]
[356639052,1742879438461,-706.3,0.00043033,2]
[356639053,1742879438470,-5856.11111583,0.00043099,15]
[356639054,1742879438479,-153.0,0.00043151,90]
[356639055,1742879438487,-164.9,0.00043616,30]
[356639056,1742879438496,-715.91,0.00043616,30]
[356639057,1742879438506,-258.36,0.00043616,30]
[356639058,1742879438516,-491.73,0.00043616,30]
[356639059,1742879438526,-168.04,0.00043616,30]
[356639060,1742879438535,-152.0,0.00043732,3]
[356639062,1742879438545,-469.82,0.00043781,30]
[356639064,1742879438554,-430.57,0.00043781,30]
[356639065,1742879438564,-5856.11111583,0.00043886,15]
[356639067,1742879438574,-541.05017557,0.000439,120]
[356639070,1742879438584,-152.89,0.00043997,2]
[356639071,1742879438593,-578.7454471,0.00044,30]
[356639073,1742879438603,-7649.33490659,0.00044,7]
[356639076,1742879438612,-369.37,0.00044239,2]
[356639078,1742879438621,-946.92009,0.0004462,2]
[356639079,1742879438631,-3376.57797406,0.00044674,15]
[356639232,1742879440284,-1112.42936015,0.00044674,15]
[356639233,1742879440295,-947.66428876,0.00044674,15]
[356639234,1742879440394,-419.43949286,0.00044674,15]
[356639235,1742879440404,-1596.50906472,0.000449,120]
[356639236,1742879440415,-4646.70093528,0.000449,120]
[356639237,1742879440424,-167.17777778,0.00045,120]
[356639238,1742879440434,-189.50440244,0.00045,120]
[356639239,1742879440443,-480.1020986,0.00045,120]
[356639240,1742879440452,-897.02290039,0.00045,120]
[356639241,1742879440462,-596.65,0.00045,120]
[356639242,1742879440472,-28399.87569627,0.00045,32]
[356639243,1742879440482,-152.89,0.00045044,2]
[356639244,1742879440491,-706.3,0.00045297,2]
[356639245,1742879440500,-5856.11111583,0.00045462,15]
[356639246,1742879440510,-177.58373874,0.000456,120]
[356639247,1742879440519,-2557.87649512,0.00045782,30]
[356639248,1742879440531,-781.32907338,0.00045782,30]
[356639249,1742879440540,-500.0,0.00045827,2]
[356639250,1742879440550,-2535.81898684,0.00045927,15]
[356639251,1742879440561,-514.3360868,0.00045927,15]
[356639252,1742879440571,-698.88382013,0.00045927,2]
[356639253,1742879440583,-3535.37754293,0.00045927,2]
[356639254,1742879440594,-756.51647867,0.00045927,2]
[356639255,1742879440620,-840.77658634,0.00045927,2]
[356639453,1742879443117,-2247.46215817,0.00045927,2]
[356639454,1742879443129,-4897.1909532,0.00045927,2]
[356639455,1742879443141,-9289.25953684,0.00045927,2]
[356639460,1742879446042,-31402.39687458,0.00045927,2]
[356639461,1742879446054,-5727.067215,0.00045927,2]
[356639462,1742879446098,-1602.70349695,0.00045927,2]
[356639463,1742879446266,-5174.80053719,0.00045927,2]
[356639464,1742879446278,-6496.0,0.00046,120]
[356639465,1742879446288,-25131.0752053,0.00046017,3]
[356639466,1742879446300,-409.0,0.00046027,120]
[356639467,1742879446312,-409.0,0.00046027,120]
[356639468,1742879446322,-409.0,0.00046027,120]
[356639469,1742879446332,-409.0,0.00046027,120]
[356639470,1742879446342,-409.0,0.00046027,120]
[356639471,1742879446352,-409.0,0.00046027,120]
[356639472,1742879446363,-409.0,0.00046027,120]
[356639473,1742879446373,-409.0,0.00046027,120]
[356639474,1742879446383,-409.0,0.00046027,120]
[356639475,1742879446396,-409.0,0.00046027,120]
[356639476,1742879446406,-409.0,0.00046027,120]
[356639477,1742879446416,-409.0,0.00046027,120]
[356639478,1742879446427,-409.0,0.00046027,120]
[356639480,1742879446437,-409.0,0.00046027,120]
[356639482,1742879446447,-409.0,0.00046027,120]
[356639484,1742879446457,-409.0,0.00046027,120]
[356639486,1742879446467,-409.0,0.00046027,120]
[356639488,1742879446477,-307.0,0.00046027,120]
[356639490,1742879446487,-307.0,0.00046027,120]
[356639493,1742879446498,-307.0,0.00046027,120]
[356639495,1742879446508,-307.0,0.00046027,120]
[356639497,1742879446518,-307.0,0.00046027,120]
[356639499,1742879446528,-307.0,0.00046027,120]
[356639501,1742879446538,-307.0,0.00046027,120]
[356639503,1742879446548,-307.0,0.00046027,120]
[356639505,1742879446557,-307.0,0.00046027,120]
[356639507,1742879446567,-307.0,0.00046027,120]
[356639509,1742879446578,-307.0,0.00046027,120]
[356639511,1742879446588,-307.0,0.00046027,120]
[356639512,1742879446599,-307.0,0.00046027,120]
[356639514,1742879446609,-307.0,0.00046027,120]
[356639516,1742879446619,-307.0,0.00046027,120]
[356639518,1742879446629,-307.0,0.00046027,120]
[356639519,1742879446639,-307.0,0.00046027,120]
[356639520,1742879446650,-409.0,0.00046027,120]
[356639521,1742879446660,-409.0,0.00046027,120]
[356639522,1742879446670,-409.0,0.00046027,120]
[356639523,1742879446680,-409.0,0.00046027,120]
[356639524,1742879446690,-409.0,0.00046027,120]
[356639525,1742879446700,-409.0,0.00046027,120]
[356639526,1742879446711,-409.0,0.00046027,120]
[356639527,1742879446721,-409.0,0.00046027,120]
[356639528,1742879446731,-409.0,0.00046027,120]
[356639529,1742879446743,-409.0,0.00046027,120]
[356639530,1742879446753,-409.0,0.00046027,120]
[356639531,1742879446763,-409.0,0.00046027,120]
[356639533,1742879446774,-409.0,0.00046027,120]
[356639535,1742879446784,-409.0,0.00046027,120]
[356639537,1742879446795,-307.0,0.00046027,120]
[356639539,1742879446805,-307.0,0.00046027,120]
[356639541,1742879446816,-307.0,0.00046027,120]
[356639544,1742879446826,-307.0,0.00046027,120]
[356639546,1742879446837,-307.0,0.00046027,120]
[356639562,1742879446950,-307.0,0.00046027,120]
[356639565,1742879446998,-307.0,0.00046027,120]
[356639567,1742879447009,-307.0,0.00046027,120]
[356639569,1742879447018,-307.0,0.00046027,120]
[356639570,1742879447028,-307.0,0.00046027,120]
[356639572,1742879447037,-307.0,0.00046027,120]
[356639574,1742879447046,-307.0,0.00046027,120]
[356639576,1742879447055,-307.0,0.00046027,120]
[356639578,1742879447065,-307.0,0.00046027,120]
[356639580,1742879447074,-409.0,0.00046027,120]
[356639582,1742879447084,-409.0,0.00046027,120]
[356639585,1742879447093,-409.0,0.00046027,120]
[356639587,1742879447103,-409.0,0.00046027,120]
[356639588,1742879447112,-409.0,0.00046027,120]
[356639590,1742879447121,-409.0,0.00046027,120]
[356639592,1742879447131,-409.0,0.00046027,120]
[356639594,1742879447140,-409.0,0.00046027,120]
[356639596,1742879447149,-409.0,0.00046027,120]
[356639598,1742879447158,-409.0,0.00046027,120]
[356639600,1742879447168,-409.0,0.00046027,120]
[356639602,1742879447178,-409.0,0.00046027,120]
[356639604,1742879447187,-409.0,0.00046027,120]
[356639606,1742879447196,-409.0,0.00046027,120]
[356639608,1742879447206,-307.0,0.00046027,120]
[356639610,1742879447216,-307.0,0.00046027,120]
[356639612,1742879447225,-307.0,0.00046027,120]
[356639614,1742879447234,-307.0,0.00046027,120]
[356639616,1742879447243,-307.0,0.00046027,120]
[356639618,1742879447253,-307.0,0.00046027,120]
[356639620,1742879447262,-307.0,0.00046027,120]
[356639622,1742879447270,-307.0,0.00046027,120]
[356639624,1742879447279,-307.0,0.00046027,120]
[356639626,1742879447288,-307.0,0.00046027,120]
[356639628,1742879447297,-307.0,0.00046027,120]
[356639630,1742879447307,-307.0,0.00046027,120]
[356639632,1742879447315,-307.0,0.00046027,120]
[356639634,1742879447324,-307.0,0.00046027,120]
[356639636,1742879447333,-409.0,0.00046027,120]
[356639638,1742879447343,-409.0,0.00046027,120]
[356639640,1742879447352,-409.0,0.00046027,120]
[356639642,1742879447361,-409.0,0.00046027,120]
[356639644,1742879447370,-409.0,0.00046027,120]
[356639646,1742879447379,-409.0,0.00046027,120]
[356639648,1742879447388,-409.0,0.00046027,120]
[356639650,1742879447397,-409.0,0.00046027,120]
[356639652,1742879447407,-409.0,0.00046027,120]
[356639654,1742879447416,-409.0,0.00046027,120]
[356639656,1742879447425,-409.0,0.00046027,120]
[356639658,1742879447433,-409.0,0.00046027,120]
[356639660,1742879447442,-409.0,0.00046027,120]
[356639662,1742879447451,-409.0,0.00046027,120]
[356639664,1742879447460,-307.0,0.00046027,120]
[356639666,1742879447468,-307.0,0.00046027,120]
[356639668,1742879447477,-307.0,0.00046027,120]
[356639669,1742879447487,-307.0,0.00046027,120]
[356639672,1742879447497,-307.0,0.00046027,120]
[356639674,1742879447507,-307.0,0.00046027,120]
[356639676,1742879447516,-307.0,0.00046027,120]
[356639677,1742879447525,-307.0,0.00046027,120]
[356639679,1742879447535,-307.0,0.00046027,120]
[356639681,1742879447544,-307.0,0.00046027,120]
[356639683,1742879447553,-307.0,0.00046027,120]
[356639685,1742879447563,-307.0,0.00046027,120]
[356639687,1742879447572,-307.0,0.00046027,120]
[356639689,1742879447581,-307.0,0.00046027,120]
[356639691,1742879447590,-409.0,0.00046027,120]
[356639693,1742879447598,-409.0,0.00046027,120]
[356639695,1742879447607,-409.0,0.00046027,120]
[356639697,1742879447616,-409.0,0.00046027,120]
[356639699,1742879447625,-409.0,0.00046027,120]
[356639701,1742879447634,-409.0,0.00046027,120]
[356639703,1742879447643,-409.0,0.00046027,120]
[356639705,1742879447652,-409.0,0.00046027,120]
[356639707,1742879447661,-409.0,0.00046027,120]
[356639709,1742879447670,-409.0,0.00046027,120]
[356639711,1742879447679,-409.0,0.00046027,120]
[356639713,1742879447688,-409.0,0.00046027,120]
[356639715,1742879447697,-409.0,0.00046027,120]
[356639717,1742879447706,-409.0,0.00046027,120]
[356639719,1742879447715,-307.0,0.00046027,120]
[356639721,1742879447724,-307.0,0.00046027,120]
[356639723,1742879447734,-307.0,0.00046027,120]
[356639725,1742879447743,-307.0,0.00046027,120]
[356639727,1742879447752,-307.0,0.00046027,120]
[356639729,1742879447762,-307.0,0.00046027,120]
[356639731,1742879447771,-307.0,0.00046027,120]
[356639733,1742879447781,-307.0,0.00046027,120]
[356639735,1742879447790,-307.0,0.00046027,120]
[356639737,1742879447800,-307.0,0.00046027,120]
[356639739,1742879447809,-307.0,0.00046027,120]
[356639741,1742879447818,-307.0,0.00046027,120]
[356639743,1742879447827,-307.0,0.00046027,120]
[356639744,1742879447837,-307.0,0.00046027,120]
[356639746,1742879447850,-409.0,0.00046027,120]
[356639748,1742879447859,-409.0,0.00046027,120]
[356639750,1742879447868,-409.0,0.00046027,120]
[356639752,1742879447877,-409.0,0.00046027,120]
[356639754,1742879447888,-409.0,0.00046027,120]
[356639756,1742879447898,-409.0,0.00046027,120]
[356639758,1742879447907,-409.0,0.00046027,120]
[356639759,1742879447916,-409.0,0.00046027,120]
[356639761,1742879447927,-409.0,0.00046027,120]
[356639763,1742879447936,-409.0,0.00046027,120]
[356639765,1742879447945,-409.0,0.00046027,120]
[356639767,1742879447954,-409.0,0.00046027,120]
[356639769,1742879447963,-409.0,0.00046027,120]
[356639770,1742879447972,-409.0,0.00046027,120]
[356639772,1742879447982,-307.0,0.00046027,120]
[356639774,1742879447991,-307.0,0.00046027,120]
[356639776,1742879448000,-307.0,0.00046027,120]
[356639778,1742879448009,-307.0,0.00046027,120]
[356639780,1742879448019,-307.0,0.00046027,120]
[356639782,1742879448028,-307.0,0.00046027,120]
[356639784,1742879448037,-307.0,0.00046027,120]
[356639786,1742879448047,-307.0,0.00046027,120]
[356639788,1742879448056,-307.0,0.00046027,120]
[356639790,1742879448066,-307.0,0.00046027,120]
[356639791,1742879448075,-307.0,0.00046027,120]
[356639793,1742879448084,-307.0,0.00046027,120]
[356639795,1742879448094,-307.0,0.00046027,120]
[356639797,1742879448104,-307.0,0.00046027,120]
[356639799,1742879448113,-409.0,0.00046027,120]
[356639801,1742879448122,-409.0,0.00046027,120]
[356639803,1742879448132,-409.0,0.00046027,120]
[356639805,1742879448142,-409.0,0.00046027,120]
[356639807,1742879448151,-409.0,0.00046027,120]
[356639809,1742879448161,-409.0,0.00046027,120]
[356639811,1742879448169,-409.0,0.00046027,120]
[356639813,1742879448179,-409.0,0.00046027,120]
[356639815,1742879448188,-409.0,0.00046027,120]
[356639817,1742879448197,-409.0,0.00046027,120]
[356639819,1742879448207,-307.0,0.00046027,120]